bitfinex/quotes_SOLUSD_20240808
["timestamp","ask_amount","ask_price","bid_price","bid_amount"]
[1723115193742,6.3031,154.16,154.07,20.17]
[1723115194123,6.3031,154.16,154.07,0.17]
[1723115194338,6.3031,154.16,154.05,20.17]
[1723115194339,6.3031,154.16,154.08,20.0]
[1723115194541,6.3031,154.16,154.06,0.17]
[1723115194542,34.6431,154.16,154.06,0.17]
[1723115196156,45.0,154.15,154.06,1.29776241]
[1723115196353,34.6431,154.16,154.07,1.29781325]
[1723115196551,34.6431,154.16,154.04,28.34]
[1723115196772,45.0,154.15,154.04,28.34]
[1723115197061,45.0,154.15,154.05,1.29740249]
[1723115197461,45.0,154.15,154.06,0.17]
[1723115197649,45.0,154.15,154.05,1.46792161]
[1723115197843,45.0,154.15,154.05,20.17]
[1723115198044,34.6431,154.16,154.06,0.17]
[1723115198947,34.6431,154.16,154.06,45.17]
[1723115199144,34.6431,154.16,154.07,20.17]
[1723115200169,45.0,154.15,154.05,20.0]
[1723115200378,41.1298,154.16,154.06,0.17]
[1723115200871,34.6431,154.16,154.06,0.17]
[1723115202368,34.6431,154.16,154.06,0.34]
[1723115202546,34.6431,154.16,154.06,45.34]
[1723115202747,34.6431,154.16,154.07,20.0]
[1723115202960,34.6431,154.16,154.08,0.17]
[1723115206073,34.6431,154.16,154.08,0.34]
[1723115206448,34.6431,154.16,154.08,0.17]
[1723115208265,6.3031,154.16,154.08,0.17]
[1723115208461,6.3031,154.16,154.08,0.34]
[1723115211574,34.6431,154.16,154.08,0.17]
[1723115212551,34.6431,154.16,154.07,0.17]
[1723115213459,34.6431,154.16,154.07,0.34]
[1723115214561,34.6431,154.16,154.07,1.57262879]
[1723115214770,34.6431,154.16,154.07,46.57262879]
[1723115214976,6.3031,154.16,154.08,20.0]
[1723115215161,15.2734,154.17,154.09,1.57332694]
[1723115215358,15.2734,154.17,154.09,46.57332694]
[1723115215565,6.76541325,154.19,154.1,20.0]
[1723115215783,19.41,154.19,154.13,19.41]
[1723115216089,19.41,154.19,154.14,20.17]
[1723115216904,19.41,154.19,154.14,0.17]
[1723115217202,19.41,154.18,154.14,0.17]
[1723115217391,19.41,154.18,154.13,20.0]
[1723115217706,913.1435,154.2,154.13,20.0]
[1723115217999,913.1435,154.2,154.09,41.87362303]
[1723115218179,913.1435,154.2,154.1,0.34]
[1723115219102,913.1435,154.2,154.11,0.50128683]
[1723115219284,913.1435,154.2,154.12,0.34]
[1723115220193,913.1435,154.2,154.12,0.17]
[1723115221709,907.0251,154.2,154.12,73.66]
[1723115221892,907.0251,154.2,154.13,20.0]
[1723115222089,907.0251,154.2,154.14,0.34]
[1723115222780,907.0251,154.2,154.14,73.66]
[1723115222985,907.0251,154.2,154.15,20.0]
[1723115223186,907.0251,154.2,154.16,0.34]
[1723115223608,907.0251,154.2,154.16,0.17]
[1723115223787,907.0251,154.2,154.13,20.0]
[1723115224307,907.0251,154.2,154.12,20.0]
[1723115225388,907.0251,154.2,154.13,0.17]
[1723115225698,907.0251,154.2,154.12,20.0]
[1723115225699,28.32,154.19,154.08,36.99891052]
[1723115225905,28.32,154.19,154.08,40.9407]
[1723115227007,16.6309,154.18,154.08,40.9407]
[1723115227183,16.6309,154.18,154.1,20.0]
[1723115227384,16.6309,154.18,154.07,11.5574]
[1723115227603,28.32,154.17,154.04,34.7204]
[1723115227902,16.6309,154.18,154.04,6.4004]
[1723115227903,28.32,154.15,154.04,6.4004]
[1723115228125,28.32,154.13,154.02,21.8835643]
[1723115228276,28.32,154.11,154.02,21.8835643]
[1723115228480,15.6221,154.1,153.98,28.32]
[1723115228787,28.32,154.09,153.98,28.32]
[1723115230227,34.8108,154.07,153.97,21.89067074]
[1723115230513,28.32,154.05,153.93,28.32]
[1723115230685,16.3689,154.02,153.92,6.518]
[1723115232018,16.3689,154.02,153.93,1.0012502]
[1723115232514,16.3689,154.02,153.94,0.17]
[1723115232886,16.3689,154.02,153.94,0.34]
[1723115233696,16.3689,154.02,153.94,45.34]
[1723115233918,16.3689,154.02,153.95,20.0]
[1723115234230,16.3689,154.02,153.96,0.61649121]
[1723115234892,16.3689,154.02,153.96,0.17]
[1723115235400,16.3689,154.02,153.96,0.34]
[1723115235591,28.32,154.07,153.97,28.32]
[1723115235592,15.7455,154.07,153.97,28.32]
[1723115235793,15.7455,154.07,153.98,21.63752973]
[1723115236115,15.7455,154.07,153.98,20.34]
[1723115236599,44.0655,154.07,153.98,20.34]
[1723115236803,44.0655,154.07,153.99,20.0]
[1723115237006,44.0655,154.07,153.98,0.34]
[1723115237216,44.0655,154.07,153.97,0.34]
[1723115238101,15.7455,154.07,153.97,28.66]
[1723115238412,15.7455,154.07,153.98,66.2977663]
[1723115238617,15.7455,154.07,153.99,1.63768202]
[1723115239012,15.7455,154.07,153.99,0.34]
[1723115242316,15.7455,154.07,153.99,35.178]
[1723115242529,15.7455,154.07,154.0,65.0]
[1723115242724,15.7455,154.07,154.01,0.34]
[1723115243293,15.2736,154.11,154.03,28.32]
[1723115243499,15.2736,154.11,154.04,21.63792624]
[1723115243816,15.2736,154.11,154.04,20.34]
[1723115244018,15.2736,154.11,154.04,20.17]
[1723115244336,15.2736,154.11,154.05,20.0]
[1723115244511,15.2736,154.11,154.04,0.17]
[1723115244822,15.2736,154.11,154.03,0.34]
[1723115245722,15.2736,154.11,154.03,0.17]
[1723115245911,43.5936,154.11,154.03,0.17]
[1723115246309,43.5936,154.11,154.02,0.17]
[1723115246530,43.5936,154.11,154.01,20.0]
[1723115246699,45.0,154.1,153.99,28.32]
[1723115246898,28.32,154.07,153.95,50.2135146]
[1723115247624,15.4592,154.05,153.96,1.29858367]
[1723115247834,15.4592,154.05,153.95,50.2135146]
[1723115248218,15.4592,154.05,153.97,28.32]
[1723115248529,15.4592,154.05,153.98,1.29837924]
[1723115248715,15.4592,154.05,153.99,1.29836925]
[1723115249311,15.4592,154.05,154.0,0.17]
[1723115249504,15.4592,154.05,154.0,1.46820063]
[1723115250544,15.4592,154.05,153.98,20.0]
[1723115250704,43.7792,154.05,153.95,21.8935146]
[1723115251308,28.32,154.03,153.95,21.8935146]
[1723115252708,45.0,154.04,153.96,1.29889777]
[1723115253014,15.4592,154.05,153.96,1.29889777]
[1723115253213,28.32,154.04,153.95,21.8935146]
[1723115253531,73.32,154.04,153.96,20.0]
[1723115256011,6.4922,154.03,153.95,21.8935146]
[1723115256207,12.908,154.01,153.95,21.8935146]
[1723115256410,12.908,154.01,153.88,21.90347396]
[1723115256411,44.5355,154.0,153.88,21.90347396]
[1723115256714,45.0,153.99,153.89,10.17842311]
[1723115257103,45.0,153.99,153.9,1.29927799]
[1723115257339,45.0,153.99,153.89,10.17842311]
[1723115257631,45.0,153.99,153.9,1.29930859]
[1723115258155,45.0,153.99,153.89,10.17842311]
[1723115258310,28.32,153.98,153.89,10.17842311]
[1723115259819,45.0,153.99,153.89,10.17842311]
[1723115259820,28.32,153.96,153.89,10.17842311]
[1723115260027,28.32,153.96,153.88,21.90347396]
[1723115261332,28.32,153.96,153.89,20.0]
[1723115261715,22.0089,153.97,153.9,0.17]
[1723115261924,22.0089,153.97,153.9,0.34]
[1723115263939,22.0089,153.97,153.9,0.17]
[1723115264330,22.0089,153.97,153.89,20.0]
[1723115264728,22.0089,153.97,153.9,0.17]
[1723115264927,22.0089,153.97,153.9,0.34]
[1723115265450,22.0089,153.97,153.9,0.17]
[1723115269952,22.0089,153.97,153.9,0.34]
[1723115270355,22.0089,153.97,153.89,41.90205064]
[1723115270553,28.32,153.96,153.89,41.90205064]
[1723115270929,28.32,153.96,153.89,21.90205064]
[1723115271140,15.3794,153.95,153.89,21.90205064]
[1723115271335,28.32,153.94,153.89,21.90205064]
[1723115271539,6.3703,153.93,153.83,28.32]
[1723115271743,6.3703,153.93,153.83,38.50214642]
[1723115272253,6.3703,153.93,153.84,21.90916909]
[1723115272833,6.3703,153.93,153.85,28.32]
[1723115273226,6.3703,153.93,153.86,20.0]
[1723115273433,6.3703,153.93,153.87,0.34]
[1723115277461,6.3703,153.93,153.87,0.17]
[1723115278061,6.3703,153.93,153.86,0.34]
[1723115279145,6.3703,153.93,153.86,1.46850608]
[1723115279361,6.3703,153.93,153.86,0.17]
[1723115279862,6.3703,153.93,153.86,1.44861463]
[1723115280279,6.3703,153.93,153.86,46.44861463]
[1723115280442,6.3703,153.93,153.87,48.49]
[1723115280647,6.3703,153.93,153.88,45.17]
[1723115280847,6.3703,153.93,153.89,20.17]
[1723115281150,6.3703,153.93,153.9,0.17]
[1723115283468,6.3703,153.93,153.87,34.838]
[1723115283469,6.3703,153.93,153.88,21.22963227]
[1723115283771,6.3703,153.93,153.89,0.17]
[1723115284077,6.3703,153.93,153.84,21.90916909]
[1723115284365,15.1981,153.92,153.84,21.90916909]
[1723115285702,15.1981,153.92,153.85,0.17]
[1723115285890,15.1981,153.92,153.84,21.90916909]
[1723115286365,15.1981,153.92,153.85,20.0]
[1723115286559,15.1981,153.92,153.86,1.29947235]
[1723115287061,15.1981,153.92,153.85,20.0]
[1723115287273,15.1981,153.92,153.86,0.17]
[1723115287860,15.1981,153.92,153.86,1.46948847]
[1723115288072,15.1981,153.92,153.86,0.17]
[1723115288390,15.1981,153.92,153.86,28.66]
[1723115288592,15.1981,153.92,153.87,20.0]
[1723115288755,15.1981,153.92,153.88,0.17]
[1723115288958,15.1981,153.92,153.88,1.63936136]
[1723115290058,15.1981,153.92,153.88,0.17]
[1723115291054,15.1981,153.92,153.87,0.34]
[1723115291257,15.1981,153.92,153.86,46.63937735]
[1723115291482,15.1981,153.92,153.88,0.17]
[1723115291778,15.1981,153.92,153.88,45.17]
[1723115291991,15.1981,153.92,153.89,20.17]
[1723115292194,15.1981,153.92,153.9,0.17]
[1723115293501,15.1981,153.92,153.87,20.0]
[1723115293676,15.1981,153.92,153.88,0.17]
[1723115294369,15.1981,153.92,153.88,45.34]
[1723115294584,15.1981,153.92,153.89,20.0]
[1723115294871,15.1981,153.92,153.9,0.17]
[1723115295375,15.1981,153.92,153.89,0.34]
[1723115295585,15.1981,153.92,153.88,0.17]
[1723115295785,15.1981,153.92,153.88,0.34]
[1723115296378,15.1981,153.92,153.88,45.34]
[1723115296573,15.1981,153.92,153.89,20.0]
[1723115296798,15.1981,153.92,153.9,0.34]
[1723115298370,15.4792,153.96,153.9,29.95925077]
[1723115298600,15.4792,153.96,153.91,65.0]
[1723115298790,15.4792,153.96,153.92,0.34]
[1723115299493,15.4792,153.96,153.92,0.17]
[1723115299792,15.4792,153.96,153.89,20.0]
[1723115300001,15.4792,153.96,153.9,0.17]
[1723115300502,15.4792,153.96,153.9,0.34]
[1723115301471,15.4792,153.96,153.9,0.17]
[1723115301676,6.496,153.95,153.84,50.22916909]
[1723115301885,43.7992,153.96,153.84,50.22916909]
[1723115302775,43.7992,153.96,153.85,1.29952728]
[1723115302970,15.4792,153.96,153.86,29.61936064]
[1723115303175,15.4792,153.96,153.88,28.32]
[1723115303498,15.4792,153.96,153.89,0.34]
[1723115303675,15.4792,153.96,153.89,20.34]
[1723115306302,43.7992,153.96,153.89,20.0]
[1723115306484,43.7992,153.96,153.85,20.0]
[1723115306812,43.7992,153.96,153.84,50.22916909]
[1723115307102,43.7992,153.96,153.85,52.80592639]
[1723115307297,43.7992,153.96,153.84,50.22916909]
[1723115308185,43.7992,153.96,153.85,1.29943441]
[1723115308392,43.7992,153.96,153.85,45.0]
[1723115308590,6.0805,153.95,153.86,20.17]
[1723115308887,88.8766,153.94,153.84,21.90916909]
[1723115309092,95.3727,153.94,153.84,21.90916909]
[1723115309286,28.32,153.9,153.8,2.55170383]
[1723115309500,28.32,153.9,153.81,10.18391244]
[1723115310199,28.32,153.9,153.82,20.17]
[1723115312408,15.8061,153.91,153.83,0.17]
[1723115312605,15.8061,153.91,153.83,45.17]
[1723115312786,15.8061,153.91,153.84,20.17]
[1723115314106,15.8061,153.91,153.85,0.17]
[1723115314613,15.8061,153.91,153.85,1.25826869]
[1723115314802,15.8061,153.91,153.86,0.17]
[1723115315004,15.8061,153.91,153.86,48.49]
[1723115315210,15.8061,153.91,153.87,0.17]
[1723115315701,6.0689,153.93,153.88,28.32]
[1723115315893,6.0689,153.93,153.89,21.63887107]
[1723115316285,6.0689,153.93,153.89,20.34]
[1723115316514,6.0689,153.93,153.89,20.17]
[1723115318398,6.0689,153.93,153.9,1.46923015]
[1723115318603,6.0689,153.93,153.89,20.17]
[1723115318813,6.0689,153.93,153.88,20.0]
[1723115319004,6.0689,153.93,153.85,20.0]
[1723115320105,6.0689,153.93,153.86,0.17]
[1723115320706,6.0689,153.93,153.86,0.34]
[1723115321614,6.0689,153.93,153.86,1.63939177]
[1723115322117,6.0689,153.93,153.86,74.95939177]
[1723115322315,6.0689,153.93,153.87,20.0]
[1723115322618,6.0689,153.93,153.88,0.17]
[1723115325743,6.0689,153.93,153.87,20.34]
[1723115325926,6.0689,153.93,153.88,29.6192608]
[1723115326102,6.0689,153.93,153.89,45.17]
[1723115326302,15.522,153.95,153.9,49.6191951]
[1723115326531,6.2212,153.97,153.92,28.32]
[1723115326707,16.5473,153.99,153.94,28.32]
[1723115327019,16.5473,153.99,153.95,21.46883019]
[1723115327212,16.5473,153.99,153.96,1.29878742]
[1723115327620,16.5473,153.99,153.95,20.17]
[1723115327816,16.5473,153.99,153.96,1.2987876]
[1723115328925,16.5473,153.99,153.95,20.17]
[1723115329308,16.5473,153.99,153.96,0.17]
[1723115330442,6.3577,154.01,153.96,28.49]
[1723115330745,6.3577,154.01,153.97,65.17]
[1723115330943,6.3577,154.01,153.98,0.17]
[1723115333123,6.3577,154.01,153.97,20.17]
[1723115337047,6.3577,154.01,153.94,48.32]
[1723115337258,6.3577,154.01,153.95,0.17]
[1723115337431,6.3577,154.01,153.95,0.34]
[1723115338533,6.3577,154.01,153.95,45.34]
[1723115338731,6.3577,154.01,153.96,20.0]
[1723115338933,6.3577,154.01,153.97,0.34]
[1723115339355,15.5125,154.03,153.98,28.32]
[1723115339557,15.5125,154.03,153.99,1.63797775]
[1723115339856,15.5125,154.03,153.99,21.63797775]
[1723115340239,6.3895,154.05,153.99,21.63797775]
[1723115340471,6.3895,154.05,154.0,28.32]
[1723115340636,6.3895,154.05,154.01,21.46829656]
[1723115340836,6.3895,154.05,154.02,1.29829912]
[1723115341036,16.5419,154.07,154.02,1.29829912]
[1723115341037,16.5419,154.07,154.03,0.17]
[1723115341552,16.5419,154.07,154.03,20.34]
[1723115342072,16.4446,154.11,154.06,28.32]
[1723115342252,16.4446,154.11,154.07,20.17]
[1723115342448,16.4446,154.11,154.07,20.34]
[1723115343552,6.2108,154.13,154.07,21.63752874]
[1723115343859,6.2108,154.13,154.08,29.61746962]
[1723115344039,15.3125,154.15,154.09,20.17]
[1723115344362,15.3125,154.15,154.1,1.46735066]
[1723115344741,15.3125,154.15,154.11,1.29748795]
[1723115344936,935.3451,154.2,154.11,1.29748795]
[1723115344937,16.3634,154.19,154.12,0.34]
[1723115345164,16.3634,154.19,154.12,28.66]
[1723115345339,16.3634,154.19,154.13,20.0]
[1723115345535,16.3634,154.19,154.14,0.17]
[1723115346371,16.3634,154.19,154.14,28.49]
[1723115346548,907.0251,154.2,154.15,20.0]
[1723115346861,907.0251,154.2,154.16,0.34]
[1723115349361,907.0251,154.2,154.16,0.17]
[1723115351351,907.0251,154.2,154.15,20.0]
[1723115352236,907.0251,154.2,154.14,50.18652766]
[1723115352237,935.3451,154.2,154.14,21.86652766]
[1723115352462,907.0251,154.2,154.14,21.86652766]
[1723115353470,935.3451,154.2,154.14,21.86652766]
[1723115354177,907.0251,154.2,154.14,21.86652766]
[1723115356643,935.3451,154.2,154.14,21.86652766]
[1723115357365,28.32,154.18,154.14,21.86652766]
[1723115357673,15.2297,154.17,154.14,21.86652766]
[1723115358041,28.32,154.16,154.07,21.87646247]
[1723115358247,28.32,154.14,154.07,21.87646247]
[1723115358449,28.32,154.14,154.03,21.88214356]
[1723115358760,28.32,154.12,154.03,21.88214356]
[1723115359749,28.32,154.12,154.04,20.17]
[1723115359952,28.32,154.12,154.04,20.0]
[1723115360366,16.0442,154.11,154.04,20.0]
[1723115360795,6.4594,154.09,154.03,21.88214356]
[1723115362153,6.4594,154.09,154.04,20.0]
[1723115364277,16.0442,154.11,154.04,20.0]
[1723115364467,16.0442,154.11,154.05,0.17]
[1723115365576,16.0442,154.11,154.05,1.4680189]
[1723115365755,16.0442,154.11,154.06,0.17]
[1723115366351,16.0442,154.11,154.05,0.17]
[1723115367085,16.0442,154.11,154.05,0.34]
[1723115367784,16.0442,154.11,154.05,0.17]
[1723115367984,16.0442,154.11,154.05,1.63794005]
[1723115368767,6.5487,154.14,154.06,28.32]
[1723115369070,15.0128,154.15,154.07,21.63769316]
[1723115369270,15.0128,154.15,154.08,1.29765797]
[1723115369499,15.0128,154.15,154.09,0.34]
[1723115370166,15.0128,154.15,154.08,0.34]
[1723115371493,15.0128,154.15,154.07,20.0]
[1723115371698,28.32,154.14,154.03,21.88214356]
[1723115373402,28.32,154.14,154.04,20.17]
[1723115375684,6.2806,154.13,154.04,20.17]
[1723115378580,6.2806,154.13,154.05,0.17]
[1723115379492,6.2806,154.13,154.05,1.46794319]
[1723115379803,6.2806,154.13,154.06,0.17]
[1723115379979,6.2806,154.13,154.04,20.0]
[1723115380300,28.32,154.12,154.04,20.0]
[1723115380500,15.0701,154.11,154.04,20.0]
[1723115384408,6.2806,154.13,154.06,28.32]
[1723115384619,6.2806,154.13,154.07,65.34]
[1723115386109,15.9169,154.15,154.08,29.61768213]
[1723115386410,15.9169,154.15,154.09,20.34]
[1723115387212,15.9169,154.15,154.08,20.0]
[1723115387496,15.9169,154.15,154.05,20.0]
[1723115387686,15.9169,154.15,154.06,0.17]
[1723115388207,44.2369,154.15,154.03,24.40807603]
[1723115389395,44.2369,154.15,154.04,0.34]
[1723115389907,15.9169,154.15,154.04,35.169]
[1723115390288,15.9169,154.15,154.05,65.68242565]
[1723115390499,15.9169,154.15,154.06,0.34]
[1723115391308,15.9169,154.15,154.06,28.66]
[1723115391520,15.9169,154.15,154.07,65.0]
[1723115391817,15.9169,154.15,154.08,0.34]
[1723115392020,15.9169,154.15,154.08,0.17]
[1723115392393,15.9169,154.15,154.08,0.34]
[1723115393209,15.9169,154.15,154.08,45.34]
[1723115393389,15.9169,154.15,154.09,20.0]
[1723115393716,15.9169,154.15,154.1,0.17]
[1723115393909,15.9169,154.15,154.09,0.17]
[1723115394406,15.9169,154.15,154.09,20.17]
[1723115394720,15.9169,154.15,154.1,0.17]
[1723115397520,15.9169,154.15,154.09,20.0]
[1723115397822,15.9169,154.15,154.08,0.17]
[1723115398119,15.9169,154.15,154.08,0.34]
[1723115398506,15.9169,154.15,154.08,45.34]
[1723115398708,15.9169,154.15,154.09,20.0]
[1723115398900,15.9169,154.15,154.1,0.34]
[1723115399501,15.9169,154.15,154.09,20.0]
[1723115399718,15.9169,154.15,154.07,20.0]
[1723115399904,15.9169,154.15,154.08,0.34]
[1723115402423,15.9169,154.15,154.08,0.17]
[1723115402804,15.9169,154.15,154.07,20.0]
[1723115404930,15.9169,154.15,154.08,1.63782802]
[1723115405921,15.9169,154.15,154.08,0.34]
[1723115406228,15.9169,154.15,154.08,1.63773085]
[1723115406428,15.9169,154.15,154.08,36.46673085]
[1723115406632,15.9169,154.15,154.09,20.0]
[1723115406836,15.9169,154.15,154.1,0.34]
[1723115407006,15.9169,154.15,154.1,74.95755299]
[1723115407197,15.0953,154.19,154.14,28.32]
[1723115407402,15.0953,154.19,154.15,65.34]
[1723115407599,907.0251,154.2,154.16,28.32]
[1723115407928,907.0251,154.2,154.17,38.13260031]
[1723115408133,907.0251,154.2,154.18,17.7914463]
[1723115408328,907.0251,154.2,154.19,0.17]
[1723115408503,907.0251,154.2,154.19,20.17]
[1723115408700,907.0251,154.2,154.19,20.0]
[1723115409427,907.0251,154.2,154.19,20.34]
[1723115410007,907.0251,154.2,154.19,20.17]
[1723115410222,907.0251,154.2,154.19,20.0]
[1723115410612,907.0251,154.2,154.18,17.7914463]
[1723115412439,907.0251,154.2,154.19,0.17]
[1723115412652,907.0251,154.2,154.18,17.7914463]
[1723115413508,907.0251,154.2,154.19,20.0]
[1723115413831,907.0251,154.2,154.19,20.17]
[1723115414128,907.0251,154.2,154.19,20.0]
[1723115415610,907.0251,154.2,154.19,20.17]
[1723115415883,907.0251,154.2,154.19,65.34]
[1723115416144,898.13654223,154.2,154.19,65.34]
[1723115416937,898.13654223,154.2,154.19,71.849]
[1723115417458,886.85454223,154.2,154.19,71.849]
[1723115417822,874.85454223,154.2,154.19,71.849]
[1723115418342,842.7080338,154.2,154.19,89.63929243]
[1723115418646,745.63620667,154.2,154.19,73.33140111]
[1723115418830,745.63620667,154.2,154.19,75.89179097]
[1723115419148,740.23620667,154.2,154.19,75.89179097]
[1723115419352,719.93120667,154.2,154.19,75.89179097]
[1723115419556,710.93120667,154.2,154.19,75.89179097]
[1723115419759,710.93120667,154.2,154.19,69.38279097]
[1723115420258,710.93120667,154.2,154.19,1.48240111]
[1723115420942,710.93120667,154.2,154.16,28.32]
[1723115421428,710.93120667,154.2,154.18,28.32]
[1723115421625,710.93120667,154.2,154.19,0.17]
[1723115422264,710.93120667,154.2,154.19,45.17]
[1723115422465,710.93120667,154.2,154.19,45.34]
[1723115422831,710.93120667,154.2,154.19,65.34]
[1723115424547,710.93120667,154.2,154.19,20.34]
[1723115425233,710.93120667,154.2,154.19,20.0]
[1723115426740,710.93120667,154.2,154.19,65.0]
[1723115426940,710.93120667,154.2,154.19,65.34]
[1723115427455,674.94888702,154.2,154.19,65.34]
[1723115427663,637.12982166,154.2,154.19,66.82240111]
[1723115427844,592.8848333,154.2,154.19,66.82240111]
[1723115428033,576.68234705,154.2,154.19,66.82240111]
[1723115428240,574.24727285,154.2,154.19,66.82240111]
[1723115428450,574.17203545,154.2,154.19,66.82240111]
[1723115428634,573.03118713,154.2,154.19,66.82240111]
[1723115428838,570.50238713,154.2,154.19,66.82240111]
[1723115429758,548.76904813,154.2,154.19,66.82240111]
[1723115429959,532.76904813,154.2,154.19,66.82240111]
[1723115430128,532.76904813,154.2,154.19,69.43375793]
[1723115430532,513.76904813,154.2,154.19,69.43375793]
[1723115430729,501.58904813,154.2,154.19,69.43375793]
[1723115431162,486.58904813,154.2,154.19,69.43375793]
[1723115431351,486.58904813,154.2,154.19,69.26375793]
[1723115432561,479.34279211,154.2,154.19,69.26375793]
[1723115432856,470.44048587,154.2,154.19,69.43375793]
[1723115433241,454.44048587,154.2,154.19,69.43375793]
[1723115433437,449.24048587,154.2,154.19,69.43375793]
[1723115433861,413.89148587,154.2,154.19,89.43375793]
[1723115434067,125.02448587,154.2,154.19,95.64668691]
[1723115434364,110.42111072,154.2,154.19,95.64668691]
[1723115434564,91.42111072,154.2,154.19,95.64668691]
[1723115434756,88.41133215,154.2,154.19,95.64668691]
[1723115434955,87.86900821,154.2,154.19,95.64668691]
[1723115435150,67.97202495,154.2,154.19,95.64668691]
[1723115435546,48.97202495,154.2,154.19,95.64668691]
[1723115435748,29.97202495,154.2,154.19,95.64668691]
[1723115436149,0.8234764,154.3,154.21,20.0]
[1723115436354,0.8234764,154.3,154.25,28.32]
[1723115436569,0.8234764,154.3,154.26,20.0]
[1723115437654,0.8234764,154.3,154.26,21.29600391]
[1723115437855,0.8234764,154.3,154.26,20.0]
[1723115438406,0.8234764,154.3,154.27,45.34]
[1723115438687,0.8234764,154.3,154.28,20.0]
[1723115438977,0.8234764,154.3,154.29,0.17]
[1723115439674,0.8234764,154.3,154.29,0.34]
[1723115439983,0.8234764,154.3,154.29,0.17]
[1723115440281,0.8234764,154.3,154.29,0.34]
[1723115441369,0.8234764,154.3,154.29,73.66]
[1723115441668,16.5651,154.36,154.29,93.66]
[1723115441873,16.5651,154.36,154.3,21.29550945]
[1723115442060,16.5651,154.36,154.31,73.66]
[1723115442278,16.5651,154.36,154.32,21.29558775]
[1723115442479,6.6477,154.37,154.33,45.34]
[1723115442672,6.6477,154.37,154.34,20.0]
[1723115442980,6.6477,154.37,154.35,0.34]
[1723115443994,6.6477,154.37,154.34,20.0]
[1723115444175,6.6477,154.37,154.32,20.0]
[1723115444490,6.6477,154.37,154.33,0.34]
[1723115444685,6.6477,154.37,154.33,45.34]
[1723115444882,6.6477,154.37,154.34,20.0]
[1723115445071,6.6477,154.37,154.33,0.34]
[1723115446888,6.6477,154.37,154.33,45.34]
[1723115447193,6.6477,154.37,154.34,20.0]
[1723115447387,6.6477,154.37,154.35,0.34]
[1723115447795,6.6477,154.37,154.35,0.17]
[1723115447969,6.6477,154.37,154.34,20.0]
[1723115448481,6.6477,154.37,154.33,0.17]
[1723115448686,6.6477,154.37,154.33,0.34]
[1723115449596,16.4579,154.36,154.32,20.0]
[1723115449893,16.4579,154.36,154.28,20.0]
[1723115451498,16.4579,154.36,154.29,1.29592949]
[1723115451707,16.4579,154.36,154.3,1.29578907]
[1723115452594,16.4579,154.36,154.31,0.17]
[1723115452799,16.4579,154.36,154.3,21.29578907]
[1723115452987,16.4579,154.36,154.31,0.17]
[1723115453178,16.4579,154.36,154.29,0.17]
[1723115453379,16.4579,154.36,154.29,29.95537188]
[1723115453590,16.4579,154.36,154.3,65.0]
[1723115453794,16.4579,154.36,154.31,0.34]
[1723115454096,16.4579,154.36,154.31,0.17]
[1723115454294,16.4579,154.36,154.31,0.34]
[1723115455293,16.4579,154.36,154.26,4.81113609]
[1723115455597,16.4579,154.36,154.27,28.32]
[1723115455990,16.4579,154.36,154.29,28.32]